Cogmind - Beta 16 --- EXPLORER MODE // 2025.11.24 @ 14:53:32 Player: K.K.Y. Result: Destroyed by Y-54 Guardian with Flak Gun Performance ------------- Evolutions (0) 0 Regions Visited (4) 800 Robots Destroyed (32) 160 Value Destroyed (903) 903 Prototype IDs (13) 260 Alien Tech Used (0) 0 Bonus (27) 27 TOTAL SCORE: 2150 Bonus ------- Follower Combat Kills 27 Cogmind --------- Core Integrity 0/250 Matter 291/300 Energy 95/100 System Corruption 1% Temperature Cool (11) Movement Treading (160) Location -7/Recycling Parts ------- > --- POWER (1) -------- (None) > --- PROPULSION (2) --- Spiked Treads Medium Treads > --- UTILITY (3) ------ Light Humpback Authchip [Weapon] > --- WEAPON (2) ------- Barrage Gun Battle Cannon > --- INVENTORY (25) --- Improved Signal Interpreter Improved Terrain Scanner Advanced ECM Suite Scrap Shield Hacking Suite Improved EM Pulse Cannon Peak State ------------ > --- POWER ------------ (None) > --- PROPULSION ------- Spiked Treads Medium Treads > --- UTILITY ---------- Light Humpback Authchip [Weapon] > --- WEAPON ----------- Barrage Gun Battle Cannon > --- INVENTORY -------- Scrap Suit Cargo Storage Unit Light Humpback Core Shielding Core Shielding Makeshift Light Armor Plating Makeshift Light Armor Plating Scrap Shield Scrap Shield Authchip [R/NC] Authchip [R/Combat] Authchip [Power] Authchip [Device] Authchip [Storage] Authchip [Processor] Heavy Battle Rifle Slug Cannon Mining Laser Multitool Enhanced Flamer [Rating: 23] Favorites ----------- Power Ion Engine Engine Ion Engine Propulsion Spiked Treads Treads Spiked Treads Utility Light Humpback Device Experimental Sensor Array Storage Light Humpback Hackware Authchip [Weapon] Weapon Medium Laser Energy Gun Medium Laser Ballistic Gun Barrage Gun Ballistic Cannon Battle Cannon Build | -11 -10 -10 -10 -7 ------- Run | Yrd Mat Min Sub Rec Slots Evolved 1 | . 1 . . . Power . | . . . . . Propulsion . | . . . . . Utility 1 | . 1 . . . Weapon . | . . . . . Parts Attached 16 | 5 1 2 4 4 Power 1 | 1 . . . . Engine 1 | 1 . . . . Core . | . . . . . Reactor . | . . . . . Propulsion 6 | 2 . 1 2 1 Treads 6 | 2 . 1 2 1 Leg . | . . . . . Wheel . | . . . . . Hover . | . . . . . Flight . | . . . . . Utility 5 | 1 . 1 1 2 Device 1 | . . 1 . . Storage 3 | 1 . . 1 1 Processor . | . . . . . Hackware 1 | . . . . 1 Protection . | . . . . . Artifact . | . . . . . Weapon 4 | 1 1 . 1 1 Energy Gun 2 | 1 1 . . . Energy Cannon . | . . . . . Ballistic Gun 1 | . . . . 1 Ballistic Cannon 1 | . . . 1 . Launcher . | . . . . . Special Weapon . | . . . . . Impact Weapon . | . . . . . Slashing Weapon . | . . . . . Piercing Weapon . | . . . . . Special Melee Weapon . | . . . . . Unidentified Prototypes 1 | . . 1 . . Parts Lost 6 | . . . 5 1 Power 1 | . . . 1 . Propulsion 1 | . . . 1 . Utility 2 | . . . 1 1 Weapon 2 | . . . 2 . Highest Loss Streak 2 | . . . 2 1 To Critical Strikes . | . . . . . Average Backups 12 | . 3 7 15 11 Power . | . . . . . Propulsion . | . . . . . Utility 8 | . 1 6 9 9 Weapon 4 | . 1 1 5 2 Tool/Special . | . . . . . Unused Backups 31 | . . 3 2 26 Power . | . . . . . Propulsion . | . . . . . Utility 21 | . . 1 . 20 Weapon 9 | . . 2 2 5 Tool/Special 1 | . . . . 1 Average Slot Usage (%) 72 | . 73 79 71 71 Engine 6 | . 12 12 6 . Treads 21 | . 25 25 19 25 Device 7 | . . 4 10 . Storage 11 | . 12 12 12 11 Hackware 1 | . . . . 10 Energy Gun 13 | . 23 25 13 . Ballistic Gun 1 | . . . . 10 Ballistic Cannon 7 | . . . 9 12 Peak Build Rating 23 | 5 6 17 22 23 Average Rating 16 | 3 5 10 19 19 On Entrance 8 | . 5 6 17 13 Avg Prop Armor Cover (%) . | . . . . . Naked Turns . | . . . . . Heaviest Build 59 | 17 19 20 59 46 Greatest Support 48 | 40 40 40 40 48 Greatest Overweight (x) 2 | . . . 2 1 Average Overweight (x) . | . . . 1 . Largest Inventory Capacity 25 | 10 10 10 25 25 Average Capacity 21 | 8 10 10 24 23 Most Carried 25 | 2 9 10 25 25 Average Carried 15 | . 3 9 18 14 Final Capacity 25 | 10 10 10 25 25 Final Carried 24 | . 9 10 24 7 Class Distribution -------------------- 91% | Hacker-Mutant 5% | Commander-Mutant Dominant Class ---------------- Hacker-Mutant | -10/Materials Hacker-Mutant | -10/Mines Hacker-Mutant | -10/Subcaves Commander-Mutant | -7/Recycling Resources | -11 -10 -10 -10 -7 ----------- Run | Yrd Mat Min Sub Rec Matter Collected 840 | 164 96 . 402 178 Remotely . | . . . . . Salvage Created 1134 | . 315 . 639 180 Parts 52 | . 16 . 34 2 Haulers Intercepted 2 | . 2 . . . Recyclers Shooed . | . . . . . Parts Field Recycled . | . . . . . Retrieved Matter . | . . . . . Parts Self-Destructed . | . . . . . Prevented . | . . . . . Parts Restored . | . . . . . Kills | -11 -10 -10 -10 -7 ------- Run | Yrd Mat Min Sub Rec Combat Hostiles Destroyed 26 | . 7 . 16 3 Guns 19 | . 6 . 12 1 Cannons 6 | . . . 4 2 Classes Destroyed 9 | . 4 . 4 1 Hauler 2 | . 2 . . . Turret 2 | . . . 2 . Watcher 2 | . 2 . . . Swarmer 9 | . 4 . 5 . Grunt 3 | . 3 . . . Sentry 3 | . . . . 3 Artisan 1 | . . . 1 . Cobbler 1 | . . . 1 . Subdweller 11 | . . . 11 . Best Kill Streak 5 | . 3 . 5 1 Combat Bots Only 3 | . 2 . 3 1 Max Kills in Single Turn 2 | . 1 . 2 1 Gunslinging . | . . . . . Exploded . | . . . . . Melee . | . . . . . Uniques/NPCs Destroyed . | . . . . . Combat | -11 -10 -10 -10 -7 -------- Run | Yrd Mat Min Sub Rec Hostile Shots Fired 259 | . 20 . 131 108 Missed 92 | . 5 . 47 40 Hits 167 | . 15 . 84 68 Projectile 167 | . 15 . 84 68 Critical Strikes 2 | . . . 2 . Damage Taken 1174 | . 93 . 791 290 Core 251 | . 3 . 172 76 Absorbed by Shields 21 | . . . . 21 Ignored by Resistances 770 | . 64 . 484 222 Core Remaining (%) 100 | 100 . . . . Volleys Fired 138 | . 27 1 93 17 Largest 2 | . 2 2 2 2 Hottest 100 | . 100 100 100 61 Shots Fired 259 | . 54 2 176 27 Gun 198 | . 54 2 132 10 Cannon 61 | . . . 44 17 Launcher . | . . . . . Special . | . . . . . Kinetic 71 | . . . 44 27 Thermal 188 | . 54 2 132 . Explosive . | . . . . . Electromagnetic . | . . . . . Robot Hit Streak 34 | . 26 15 34 14 Robot Miss Streak 1 | . 1 . 1 1 Penetration Max . | . . . . . Secondary Targets 4 | . 3 . 1 . Max Gunslinging Chain 1 | . 1 . 1 . Shots Hit Robots 191 | . 46 2 121 22 Core Hits 67 | . 17 1 38 11 Critical Kills . | . . . . . Critical Parts Destroyed . | . . . . . Critical Strikes 24 | . 8 . 14 2 Burn 20 | . 8 . 12 . Blast 4 | . . . 2 2 Melee Attacks . | . . . . . Impact . | . . . . . Slashing . | . . . . . Piercing . | . . . . . Sneak Attacks . | . . . . . Combat Hostiles . | . . . . . Follow-up Attacks . | . . . . . Damage Inflicted 2745 | . 577 38 1686 444 Guns 2023 | . 577 25 1289 132 Cannons 691 | . . . 391 300 Explosions . | . . . . . Melee . | . . . . . Ramming 31 | . . 13 6 12 Kinetic 823 | . . . 391 432 Thermal 1891 | . 577 25 1289 . Explosive . | . . . . . Electromagnetic . | . . . . . Impact . | . . . . . Slashing . | . . . . . Piercing . | . . . . . Highest Corruption 1 | . 1 1 1 1 Average Corruption 1 | . 1 1 1 1 Corruption Purged . | . . . . . Corruption Blocked . | . . . . . Effects 74 | . . 7 60 7 Message Errors 25 | . . 3 18 4 Matter Fused 18 | . . 2 15 1 Heat Flow Errors 7 | . . 1 5 1 Energy Discharges 11 | . . 1 9 1 Data Loss (minor) 9 | . . . 9 . Data Loss (major) 2 | . . . 2 . Misfires 2 | . . . 2 . Overload Shots . | . . . . . Overflow Damage 13 | . . . 13 . Projectiles 13 | . . . 13 . Explosions . | . . . . . Melee . | . . . . . Knockbacks 2 | . . . 2 . Impact . | . . . . . Kinetic 2 | . . . 2 . Secondary . | . . . . . Self-Inflicted Damage . | . . . . . Shots . | . . . . . Rammed 5 | . . 1 2 2 Targets Rammed 5 | . . 1 2 2 Kicked . | . . . . . Crushed . | . . . . . Highest Temperature 428 | . 428 100 228 218 Average Temperature 103 | . 127 38 99 40 Received Heat Transfer 489 | . 54 . 264 171 Effects 2 | . 2 . . . Shutdowns 1 | . 1 . . . Energy Bleed 1 | . 1 . . . Siege Activations . | . . . . . Martial Activations . | . . . . . Shielding Activations . | . . . . . Robots Disrupted . | . . . . . Combat Hostiles . | . . . . . Robots Corrupted . | . . . . . Combat Hostiles . | . . . . . Parts Fried . | . . . . . Impact Corruptions . | . . . . . Robots Melted 1 | . 1 . . . Combat Hostiles 1 | . 1 . . . Parts Melted 12 | . 6 . 6 . Heat Transferred 7067 | . 2294 74 4699 . Parts Sabotaged . | . . . . . Parts Stolen . | . . . . . Parts Stripped . | . . . . . Power Chain Reactions . | . . . . . Alert | -11 -10 -10 -10 -7 ------- Run | Yrd Mat Min Sub Rec Maximum Alert Level . | . . . . . Low Security (%) 100 | 100 100 100 . 100 Level 1 . | . . . . . Level 2 . | . . . . . Level 3 . | . . . . . Level 4 . | . . . . . Level 5 . | . . . . . High Security . | . . . . . Max Security . | . . . . . Peak Influence 55 | . 55 . . 24 Initial . | . . . . . Average 2 | . 7 . . . Influence Increases 492 | . 201 . 195 96 Destroy 0b10 Robot/C 340 | . 140 . 140 60 Destroy 0b10 Robot/NC 30 | . 20 . . 10 Destroy Leader 48 | . 38 . 10 . Successful Hack 28 | . 3 . . 25 Destroy Structure 1 | . . . . 1 Lose Combat Pursuer 45 | . . . 45 . Influence Decreases 492 | . 201 . 195 96 Time Decay 477 | . 201 . 185 91 Lost Part 15 | . . . 10 5 Squads Dispatched . | . . . . . Investigation . | . . . . . Extermination . | . . . . . Reinforcement . | . . . . . Assault . | . . . . . Garrison . | . . . . . Intercept . | . . . . . Searches Triggered . | . . . . . Construction Impeded . | . . . . . Haulers Reinforced . | . . . . . Active Scanning Responses . | . . . . . Cargo Convoy Interrupts . | . . . . . Stealth | -11 -10 -10 -10 -7 --------- Run | Yrd Mat Min Sub Rec Distress Signals 1 | . 1 . . . Communications Jammed . | . . . . . Distress Signals . | . . . . . Times Spotted 36 | . 12 . 19 5 Peak Tracking Total 6 | . 3 . 6 2 Tactical Retreats 2 | . . . 2 . Traps | -11 -10 -10 -10 -7 ------- Run | Yrd Mat Min Sub Rec Traps Triggered 1 | . 1 . . . Indirectly . | . . . . . Trap Hack Attempts . | . . . . . Triggered . | . . . . . Disarmed . | . . . . . Reprogrammed . | . . . . . Reused . | . . . . . Traps Extracted . | . . . . . Installed . | . . . . . Triggered . | . . . . . Machines | -11 -10 -10 -10 -7 ---------- Run | Yrd Mat Min Sub Rec Machines Disabled 1 | . . . 1 . Max in Single Turn 1 | . . . 1 . Machines Repaired . | . . . . . Machines Dismantled . | . . . . . Machines Sabotaged . | . . . . . Overloaded Fab Kills . | . . . . . Hacking | -11 -10 -10 -10 -7 --------- Run | Yrd Mat Min Sub Rec Machines Accessed 16 | . 7 . 2 7 Terminals 10 | . 7 . . 3 Fabricators . | . . . . . Repair Stations . | . . . . . Recycling Units 4 | . . . . 4 Scanalyzers . | . . . . . Garrison Access . | . . . . . Total Hacks 41 | . 9 . 5 27 Successful 31 | . 8 . 5 18 Failed 10 | . 1 . . 9 Catastrophic . | . . . . . Database Lockouts . | . . . . . Manual 12 | . 8 . . 4 Terminals 15 | . 9 . . 6 Fabricators . | . . . . . Repair Stations . | . . . . . Recycling Units 21 | . . . . 21 Scanalyzers . | . . . . . Garrison Access . | . . . . . Terminal Hacks 7 | . 1 . 5 1 Record 4 | . . . 4 . Part Schematic 1 | . . . . 1 Zone Layout 1 | . 1 . . . Proto ID Catalog 1 | . . . 1 . Fabricator Hacks . | . . . . . Repair Station Hacks . | . . . . . Recycling Unit Hacks 14 | . . . . 14 Retrieve Components 14 | . . . . 14 Scanalyzer . | . . . . . Garrison Access Hacks . | . . . . . Unauthorized Hacks 10 | . 7 . . 3 Terminals 10 | . 7 . . 3 Botnet 10 | . 7 . . 3 Fabricators . | . . . . . Repair Stations . | . . . . . Recycling Units . | . . . . . Scanalyzers . | . . . . . Garrison Access . | . . . . . Data Cores Recovered . | . . . . . Used . | . . . . . Hacking Detections 8 | . 2 . . 6 Full Trace Events 5 | . . . . 5 Feedback Events . | . . . . . Feedback Blocked . | . . . . . Robot Schematics Acquired . | . . . . . Robots Built . | . . . . . Authchips . | . . . . . Time . | . . . . . Total Robot Build Rating . | . . . . . Part Schematics Acquired 1 | . . . . 1 Parts Built . | . . . . . Authchips . | . . . . . Time . | . . . . . Total Part Build Rating . | . . . . . Part Studies Acquired . | . . . . . Parts Repaired . | . . . . . Time . | . . . . . Parts Recycled . | . . . . . Recycled Matter . | . . . . . Retrieved Matter . | . . . . . Retrieved Components 19 | . . . . 19 Parts Scanalyzed . | . . . . . Part Schematics Acquired . | . . . . . Parts Damaged . | . . . . . Bothacking | -11 -10 -10 -10 -7 ------------ Run | Yrd Mat Min Sub Rec Used RIF Installer . | . . . . . Robots Hacked . | . . . . . Non-combat . | . . . . . Combat . | . . . . . Robot Hacks Applied . | . . . . . Relay Couplers Released . | . . . . . Fabnet Peak Effective % . | . . . . . Robots Rewired 9 | . . . . 9 Allies Hacked . | . . . . . Hacks Repelled . | . . . . . Allies | -11 -10 -10 -10 -7 -------- Run | Yrd Mat Min Sub Rec Total Allies 9 | . . . . 9 Largest Group 9 | . . . . 9 Highest-Rated Group 216 | . . . . 216 Highest-Rated Ally 40 | . . . . 40 Total Orders . | . . . . . Ally Attacks 6 | . . . . 6 Total Damage 87 | . . . . 87 Kills 1 | . . . . 1 Allies Corrupted . | . . . . . Allies Melted . | . . . . . Intel | -11 -10 -10 -10 -7 ------- Run | Yrd Mat Min Sub Rec Active Infowar (turns) 6016 | . . 346 5670 . Sensors 6016 | . . 346 5670 . Robot Analysis Total . | . . . . . Derelict Logs Recovered 4 | . . 1 3 . Drone Launches . | . . . . . Drone Recoveries . | . . . . . Exploration | -11 -10 -10 -10 -7 ------------- Run | Yrd Mat Min Sub Rec Turns Passed 9606 | 61 979 853 6649 1064 Spaces Moved 3878 | 35 553 501 2269 520 Core 5 | 5 . . . . Treads 3873 | 30 553 501 2269 520 Legs . | . . . . . Wheels . | . . . . . Hover . | . . . . . Flight . | . . . . . Fastest Speed 50 | 50 160 160 160 160 Average Speed 232 | 144 160 160 278 182 Slowest Speed 360 | 160 160 160 360 260 Overloaded Moves . | . . . . . Propulsion Burnouts . | . . . . . Robots Hopped . | . . . . . Potential Cave-ins . | . . . . . Cave-ins Triggered . | . . . . . Exploration Rate (%) 65 | 4 81 96 85 60 Regions Visited 4 Branch Regions 3 Pre-discovered Areas 3 | . . 2 1 . Known Exits Taken 4 | 1 1 1 1 . Unknown Exits Taken . | . . . . . Scrap Searched 8 | . . 1 7 . Spaces Dug . | . . . . . Terrain Destroyed 1 | . . . . 1 Melee . | . . . . . Projectile 1 | . . . . 1 AOE . | . . . . . Terrain Rammed . | . . . . . Walls Destroyed . | . . . . . Machines Disabled . | . . . . . Actions | -11 -10 -10 -10 -7 --------- Run | Yrd Mat Min Sub Rec Total 4216 | 46 593 552 2416 609 Wait 89 | 2 4 41 27 15 Move 3874 | 34 552 500 2268 520 Hop . | . . . . . Pick Up 43 | 5 9 3 16 10 Fast Attach 3 | . . 1 1 1 Attach 11 | 5 1 . 3 2 Detach 1 | . . . 1 . Swap 5 | . . 1 1 3 Drop 14 | . . 4 4 6 Fire 138 | . 27 1 93 17 Melee . | . . . . . Ram . | . . . . . Kick . | . . . . . Crush 5 | . . 1 2 2 Escape Stasis . | . . . . . Rewire 33 | . . . . 33 Trap . | . . . . . Miscellaneous . | . . . . . Route ------- -11/Scrapyard -10/Materials (discovered 3 exits: *Mat x2 / *Min) -10/Mines (discovered 4 exits: *Mat x2 / *Exi / *Sub) -10/Subcaves (discovered 4 exits: *Mat x2 / *Rec / [*Scr]) -7/Recycling (discovered 1 exit: *Fac) History --------- Turn | Location | Event 37 | -11/Scrapyard | Identified exit to Materials 37 | -11/Scrapyard | Discovered exit to Materials (range 15) 62 | -11/Scrapyard | Entered Materials 62 | -10/Materials | Evolved 1 slot: Utility x1 317 | -10/Materials | Build established: Hacker-Mutant 368 | -10/Materials | Identified exit to Materials 368 | -10/Materials | Discovered exit to Materials (range 5) 501 | -10/Materials | Discovered exit to Materials (range 16) 502 | -10/Materials | Identified exit to Mines 502 | -10/Materials | Discovered exit to Mines (range 13) 1041 | -10/Materials | Entered Mines 1089 | -10/Mines | Discovered exit to Materials (range 5) 1216 | -10/Mines | Found a Scrap Suit stashed away for nefarious purposes 1229 | -10/Mines | Found Scrap Suit 1375 | -10/Mines | Learned location of Recycling (-7) 1545 | -10/Mines | Found a damaged Exp. Sensor Array with a note attached 1548 | -10/Mines | Found Prototype Device 1548 | -10/Mines | Identified Exp. Sensor Array 1661 | -10/Mines | Deemed a non-threat by the Exiles lab entrance 1661 | -10/Mines | Identified exit to Exiles 1661 | -10/Mines | Discovered exit to Exiles (range 5) 1832 | -10/Mines | A weapon hastily lodged in a ceiling crevice suddenly fell to the ground 1870 | -10/Mines | Discovered exit to Materials (range 7) 1873 | -10/Mines | Learned location of Storage (-7) 1884 | -10/Mines | Identified exit to Subcaves 1884 | -10/Mines | Discovered exit to Subcaves (range 6) 1894 | -10/Mines | Entered Subcaves 1895 | -10/Subcaves | Approached by a straggling Scientist 1903 | -10/Subcaves | Shifting Twisted Machinery released Mak. Hammer 1922 | -10/Subcaves | A swath of the cavern ceiling suddenly collapsed 1922 | -10/Subcaves | Learned Materials emergency access door positions 2329 | -10/Subcaves | Shifting Twisted Machinery released Battle Cannon 2961 | -10/Subcaves | Identified exit to Materials 2961 | -10/Subcaves | Discovered exit to Materials (range 15) 3106 | -10/Subcaves | Visited Clippyterm 3114 | -10/Subcaves | Learned Research machine intel 3159 | -10/Subcaves | Discovered exit to Materials (range 14) 3279 | -10/Subcaves | Core integrity fell below 50% 3319 | -10/Subcaves | Shifting Twisted Machinery released Scrap Shield 3319 | -10/Subcaves | Shifting Twisted Machinery released Sub. Laser 4567 | -10/Subcaves | Visited 4L-MR0's lab 5418 | -10/Subcaves | Identified exit to Recycling 5418 | -10/Subcaves | Discovered exit to Recycling (range 15) 8543 | -10/Subcaves | Entered Recycling 8947 | -7/Recycling | Core integrity fell below 20% 9255 | -7/Recycling | Identified exit to Factory 9255 | -7/Recycling | Discovered exit to Factory (range 7) 9361 | -7/Recycling | Build established: Commander-Mutant 9607 | -7/Recycling | Destroyed by Y-54 Guardian with Flak Gun Last Messages --------------- >>Retrieve(Components) Retrieving 1 components... Imp. Cooling System 09385_ Connecting with Recycling Unit... 09387_ M#U:YMVHUZHIOUCBBI4/&,#YBNO>Retrieve(Components) Retrieving 2 components... Lgt. Fission Core Proton Cannon 09560_ Slammed into R-06 Scavenger. 09594_ Connecting with Terminal... >>Trojan(Botnet) Trojan loaded successfully. Testing... Terminal linked with 2 systems. Awaiting botnet instructions. 09604_ Y-54 Guardian springs to life. Map ----- +----------------------------------------------------+ | ?????????????????????????????????????????????????? | | ?????????????????????????????????????????????????? | | ?????????????????????????????????????????????????? | | ?????????????????????????????????????????????????? | | ?????????????????????????????????????????????????? | | ?????????????????????????????????????????????????? | | ?????????????????????????????????????????????????? | | ?????????????????????????????????????????????????? | | ?????????????????????????????????????????????????? | | ?????????????????????????????????????????????????? | | ?????????????????????????????????????????????????? | | ??????????????????????????????????????????????#### | | ??????????????????????????????????????????????# | | ??????????????????????????????????????????????# | | ??????????????????????????????????????????????# | | ??????????????????????????????????????????????# | | ??????????????????????????????????????????????#### | | ????????????????????????????????????????????????# | | ????????????????????????????????????????????????# | | ????????????????????????????????????????????????# | | ???????????????#?????????????#######?????#??????# | | ???????????????# !??????###### #??#### ####?# | | ???????????????# ????+ /i"T" #??# ?# | | ???????????????# ??# isg# #??# # | | ???????????????# | # i # #??# # | | ???????????????#! ![= /@ %# #??# / | | ???????????????# ##Y# # """ #??# # | | ???????????????#######???### # """ #??# # | | ???????????????????????????# # """ #??# ?# | | ???????????????????????????# # #??# ?# | | ???????????????????????????# # """ #??########??# | | ???????????????????????????# # """ #????????????# | | ???????????????????????????? # """ #????????????# | | ???????????????????????????? # #????????????# | | ???????????????????????????? # #????#####???# | | ???????????????????????????? # #????# !!#???# | | ????????????????????????#### ##/#########!! ##### | | ????????????????? % | | ????????????????????????############### | | ???????????????????????????????# # | | ???????????????????????????????# """# ######## | | ???????????????????????????????# """# !!#?# | | ???????????????????????????????# """# !!#?# | | ???????????????????????????????# """# !!#?# " | | ???????????????????????????????# """# [!###?# " | | ???????????????????????????????# + !!""#?# " | | ???????????????????????????????# """# !!Y"#?# " | | ???????????????????????????????# """# !!""#?# " | | ???????????????????????????????# """# ! ###?# | | ???????????????????????????????# """# #???# " | +----------------------------------------------------+ Best States ------------- Heat Dissipation 25 Energy Generation 10 Energy Capacity 250 Matter Stores 300 Matter Capacity 300 Sight Range 16 Robot Scan Range 20 Terrain Scan Density 10 Resistance: KI 35 Resistance: TH 35 Resistance: EX 35 Resistance: EM 35 Resistance: I 35 Resistance: S 35 Resistance: P 35 Evasion (%) 40 Recoil Reduction 2 Offensive Hacking 20 Authchip Count 7 Item Schematics ----------------- Thunder Leg | -7/Recycling | Hacked Robot Schematics ------------------ None Fabricated ------------ Nothing Repaired ---------- Nothing Studied --------- None Alien Tech Used ----------------- None Achievements -------------- None Challenges ------------ None Game ------ Seed GunColdShotgun Manual? 0 Play Time 00:25:53 Cumulative 138.1 hours Start 2025.11.24 @ 14:29:15 End 2025.11.24 @ 14:53:32 Sessions 1 Manual Loads 0 Difficulty Explorer Special Mode None Game No. 158 Rogue 0 Adventurer 0 Explorer 158 Win Type - Total 0 Types 0/0/0/0/0/0/0/0/0/0 Lore% 68 Gallery% 66 Achievement% 51 Wizard Run 0 Options --------- Layout 1 ASCII 0 Keyboard 0 Movement Mouse Keybinds 0 Fullscreen 1 Font 24/Smallcaps Map View 50x35 Zoom Use 0% Tactical HUD 1 Map Filters NONE Filters NONE Steam 1 RUN: c38bb7b2-5715-4211-9c63-f01991f999b7